bitfinex/quotes_ETHUSD_20230117
["timestamp","ask_amount","ask_price","bid_price","bid_amount"]
[1673959467601,8.12635789,1571.0,1570.9,1.30026988]
[1673959467928,10.03491559,1571.0,1570.9,1.30026988]
[1673959470183,7.6492267,1571.0,1570.9,1.43515544]
[1673959471066,16.40028559,1571.0,1570.9,1.43515544]
[1673959471245,16.40028559,1571.0,1570.9,1.30026988]
[1673959477283,14.49172789,1571.0,1570.9,1.30026988]
[1673959478016,16.4008066,1571.0,1570.9,1.30026988]
[1673959478197,14.49172789,1571.0,1570.9,1.30026988]
[1673959478541,20.85709789,1571.0,1570.9,1.30026988]
[1673959479543,14.49172789,1571.0,1570.9,1.30026988]
[1673959482321,20.85709789,1571.0,1570.9,1.30026988]
[1673959485846,14.49172789,1571.0,1570.9,1.30026988]
[1673959487318,16.40114023,1571.0,1570.9,1.30026988]
[1673959490296,16.40114023,1571.0,1570.9,1.29718475]
[1673959491007,14.01545134,1571.0,1570.9,1.29718475]
[1673959491222,14.01545134,1571.0,1570.9,1.43176179]
[1673959491558,15.4473321,1571.0,1570.9,1.43176179]
[1673959491953,1.49788076,1571.0,1570.9,1.43176179]
[1673959492210,2.38642016,1571.0,1570.9,1.43176179]
[1673959492427,2.3863264,1571.0,1570.9,1.43176179]
[1673959492597,1.43186342,1571.0,1570.9,1.43176179]
[1673959493215,2.38640892,1571.0,1570.9,1.43176179]
[1673959493425,0.9545455,1571.0,1570.9,1.43176179]
[1673959493690,2.38640892,1571.0,1570.9,1.43176179]
[1673959494062,0.9545455,1571.0,1570.9,1.43176179]
[1673959494302,3.40727576,1571.1,1570.9,1.43176179]
[1673959494526,3.34127576,1571.1,1570.9,1.43176179]
[1673959494849,3.34127576,1571.1,1570.9,0.13457704]
[1673959495001,0.95422959,1571.0,1570.9,0.13457704]
[1673959495215,3.40727576,1571.1,1570.9,0.13457704]
[1673959495463,0.9539903,1571.0,1570.9,0.13457704]
[1673959495637,1.43186342,1571.1,1570.9,0.13457704]
[1673959495860,0.95399572,1571.0,1570.9,0.13457704]
[1673959496047,0.95398737,1571.0,1570.9,0.13457704]
[1673959496261,0.9539945,1571.0,1570.9,0.13457704]
[1673959496533,1.43186342,1571.1,1570.9,0.13457704]
[1673959497153,1.90797377,1571.0,1570.8,8.66965865]
[1673959497365,1.49786342,1571.1,1570.9,0.88502136]
[1673959497531,1.43186342,1571.1,1570.9,0.83502136]
[1673959498206,0.95384187,1571.0,1570.9,0.83502136]
[1673959498419,1.43186342,1571.1,1570.9,0.83502136]
[1673959498941,2.38570011,1571.1,1570.9,0.83502136]
[1673959499097,2.38570011,1571.1,1571.0,0.08350214]
[1673959499940,2.38570011,1571.1,1570.9,0.83502136]
[1673959501766,2.38570011,1571.1,1570.8,2.30348865]
[1673959501767,0.95376723,1571.0,1570.8,2.30348865]
[1673959502109,0.95376723,1571.0,1570.7,33.09184637]
[1673959502110,0.95376732,1571.0,1570.7,33.09184637]
[1673959503259,8.75102074,1571.0,1570.7,26.72543637]
[1673959503508,8.81702074,1571.0,1570.7,26.72543637]
[1673959505391,8.81702074,1571.0,1570.7,30.89991738]
[1673959507006,0.95376732,1570.9,1570.7,30.89991738]
[1673959507355,7.86325342,1571.0,1570.7,33.26942407]
[1673959507567,7.86672686,1571.0,1570.7,33.26942407]
[1673959507728,0.95369651,1570.9,1570.7,33.26942407]
[1673959508087,0.95373085,1570.9,1570.7,33.26942407]
[1673959508303,7.86672686,1571.0,1570.7,33.26942407]
[1673959508824,0.95373074,1570.9,1570.7,33.26942407]
[1673959509011,7.86672686,1571.0,1570.7,33.26942407]
[1673959509418,0.95374946,1570.9,1570.7,33.26942407]
[1673959509622,0.95374992,1570.9,1570.7,33.26942407]
[1673959509843,0.95374963,1570.9,1570.7,33.26942407]
[1673959510048,7.86672686,1571.0,1570.7,33.26942407]
[1673959510276,2.45508284,1571.0,1570.7,33.26942407]
[1673959510451,2.38908284,1571.0,1570.8,3.32694241]
[1673959511132,0.95721942,1571.0,1570.8,9.69304241]
[1673959511322,0.95721942,1571.0,1570.8,9.75904241]
[1673959517124,0.95713411,1571.0,1570.8,9.75904241]
[1673959520177,0.95713411,1571.0,1570.8,12.12841846]
[1673959520385,0.95713411,1571.0,1570.9,7.57861185]
[1673959520386,0.00347344,1571.0,1570.9,7.57861185]
[1673959520628,0.00347344,1571.0,1570.9,7.64461185]
[1673959523616,0.00347344,1571.0,1570.9,1.27884185]
[1673959523827,0.00347344,1571.0,1570.8,18.49459846]
[1673959525361,0.00347344,1571.0,1570.9,1.57952073]
[1673959525507,0.00347344,1571.0,1570.8,19.43989765]
[1673959525886,0.00347344,1571.0,1570.8,18.49459846]
[1673959526032,0.00347344,1571.0,1570.8,19.43989765]
[1673959526771,0.00347344,1571.0,1570.8,18.49459846]
[1673959527457,0.00347344,1571.0,1570.9,1.57952418]
[1673959529426,0.95763339,1571.0,1570.9,1.57952418]
[1673959529615,0.95766393,1571.0,1570.8,15.16765605]
[1673959529836,2.38952735,1571.0,1570.8,15.16765605]
[1673959530079,2.38952735,1571.0,1570.8,12.79828]
[1673959530276,0.95421673,1570.9,1570.8,12.79828]
[1673959530537,0.95421323,1570.9,1570.8,8.00838772]
[1673959530680,1.43533686,1571.0,1570.8,6.4287593]
[1673959530910,0.95424844,1570.9,1570.8,6.4287593]
[1673959531125,3.4107492,1571.0,1570.8,6.4287593]
[1673959531451,3.3447492,1571.0,1570.8,6.4287593]
[1673959531670,0.95429618,1570.9,1570.8,6.4287593]
[1673959532187,1.43186342,1570.9,1570.8,0.066]
[1673959532393,2.38617618,1570.9,1570.7,30.3060207]
[1673959532608,0.95431725,1570.8,1570.7,27.93643637]
[1673959532820,0.95431769,1570.8,1570.7,9.27286719]
[1673959532978,1.77862274,1570.9,1570.7,9.27286719]
[1673959533184,1.77862274,1570.9,1570.7,7.69313637]
[1673959533393,2.73291229,1570.9,1570.7,7.69313637]
[1673959533850,1.30104887,1570.9,1570.7,7.69313637]
[1673959534081,1.30088659,1570.9,1570.7,7.69313637]
[1673959534257,1.30089857,1570.9,1570.7,7.69313637]
[1673959534470,2.73276199,1570.9,1570.7,7.69313637]
[1673959535613,2.73275606,1570.9,1570.7,7.69313637]
[1673959538880,2.73275606,1570.9,1570.7,14.05971637]
[1673959539091,2.73275606,1570.9,1570.7,7.69313637]
[1673959540257,2.73275606,1570.9,1570.7,6.48213637]
[1673959541397,0.95413332,1570.8,1570.7,6.48213637]
[1673959541643,1.77862274,1570.9,1570.7,8.77473097]
[1673959541812,2.7324582,1570.9,1570.7,8.77473097]
[1673959542612,2.7324582,1570.9,1570.7,6.48213637]
[1673959543355,2.73245935,1570.9,1570.7,6.48213637]
[1673959544078,1.30059593,1570.9,1570.7,6.48213637]
[1673959544240,2.73245935,1570.9,1570.7,6.48213637]
[1673959544816,1.30059593,1570.9,1570.7,6.48213637]
[1673959545495,2.73245935,1570.9,1570.7,6.48213637]
[1673959546710,1.77862274,1570.9,1570.7,6.48213637]
[1673959546872,2.79091159,1570.9,1570.7,6.48213637]
[1673959547073,3.74461287,1570.9,1570.7,6.48213637]
[1673959547287,1.77862274,1570.9,1570.7,6.48213637]
[1673959547505,2.73229122,1570.9,1570.7,6.48213637]
[1673959547922,1.3004278,1570.9,1570.7,6.48213637]
[1673959548173,2.73229122,1570.9,1570.7,6.48213637]
[1673959550747,1.3004278,1570.9,1570.7,6.48213637]
[1673959550982,1.2970857,1570.9,1570.7,6.48213637]
[1673959551188,1.2970857,1570.9,1570.7,8.77473748]
[1673959551714,1.20808823,1570.9,1570.7,8.77473748]
[1673959555496,1.20808823,1570.9,1570.7,6.48213637]
[1673959555932,1.20808823,1570.9,1570.7,0.11580637]
[1673959556148,0.95356077,1570.8,1570.7,0.04980637]
[1673959556525,21.80368394,1570.9,1570.8,0.94787152]
[1673959556737,15.18322419,1570.9,1570.8,0.94787152]
[1673959556993,13.75136077,1570.9,1570.8,0.94787152]
[1673959557209,7.38546077,1570.9,1570.8,0.94787152]
[1673959560373,9.73158377,1570.9,1570.8,0.94787152]
[1673959560691,7.38546077,1570.9,1570.8,0.94787152]
[1673959562464,7.38546077,1570.9,1570.7,0.04980637]
[1673959562624,7.38186334,1570.9,1570.7,0.04980637]
[1673959563042,8.81372676,1570.9,1570.7,0.04980637]
[1673959563303,7.38186334,1570.9,1570.7,0.04980637]
[1673959563508,8.81372676,1570.9,1570.7,0.04980637]
[1673959566026,0.95356077,1570.8,1570.7,0.04980637]
[1673959566239,15.17965676,1570.9,1570.7,0.04980637]
[1673959566843,0.95356077,1570.8,1570.7,0.04980637]
[1673959567463,0.95356077,1570.8,1570.7,1.62956807]
[1673959569614,14.16422342,1570.8,1570.7,0.04980637]
[1673959569960,14.23022342,1570.8,1570.7,0.04980637]
[1673959570326,2.45270774,1570.8,1570.7,0.97280637]
[1673959570536,0.95482173,1570.8,1570.7,0.25416438]
[1673959570743,0.95482173,1570.8,1570.7,1.8339566]
[1673959571644,8.27559234,1570.8,1570.7,0.04980637]
[1673959571865,16.14024555,1570.8,1570.7,0.04980637]
[1673959573353,21.07395234,1570.8,1570.7,0.04980637]
[1673959576735,1.43146248,1570.8,1570.7,0.04980637]
[1673959576944,2.38573225,1570.8,1570.7,0.04980637]
[1673959578981,1.43146248,1570.8,1570.7,0.04980637]
[1673959579201,9.45916898,1570.8,1570.7,0.04980637]
[1673959579414,15.89134898,1570.8,1570.7,0.04980637]
[1673959581153,14.22982248,1570.8,1570.7,0.04980637]
[1673959585763,2.45154233,1570.8,1570.7,0.04980637]
[1673959585979,2.38554233,1570.8,1570.7,0.04980637]
[1673959586224,1.43146248,1570.8,1570.7,0.04980637]
[1673959586655,2.38557667,1570.8,1570.7,0.04980637]
[1673959587262,7.79764248,1570.8,1570.7,0.04724552]
[1673959587497,7.86364248,1570.8,1570.7,0.04724552]
[1673959588492,10.35258287,1570.8,1570.7,0.04724552]
[1673959588615,23.56264287,1570.8,1570.7,0.04724552]
[1673959588978,23.08494287,1570.8,1570.7,0.04724552]
[1673959589560,23.56289273,1570.8,1570.7,0.04724552]
[1673959590291,24.03916928,1570.8,1570.7,0.04724552]
[1673959591146,25.9473209,1570.8,1570.7,0.04724552]
[1673959591760,23.56163201,1570.8,1570.7,0.04724552]
[1673959592359,24.03916928,1570.8,1570.7,0.04724552]
[1673959592496,26.42480913,1570.8,1570.7,0.04724552]
[1673959592708,24.51686928,1570.8,1570.7,0.04724552]
[1673959593249,26.42477727,1570.8,1570.7,0.04724552]
[1673959593484,24.51686928,1570.8,1570.7,0.04724552]
[1673959594968,29.23586928,1570.8,1570.7,0.04724552]
[1673959595121,44.48786928,1570.8,1570.7,0.04724552]
[1673959595333,38.60218039,1570.8,1570.7,0.04724552]
[1673959595542,34.62063138,1570.8,1570.7,0.04724552]
[1673959596063,36.52790929,1570.8,1570.7,0.04724552]
[1673959596231,22.86114868,1570.8,1570.7,0.04724552]
[1673959596946,29.22732868,1570.8,1570.7,0.04724552]
[1673959597396,29.70469099,1570.8,1570.7,0.04724552]
[1673959597703,29.75006,1570.8,1570.7,0.04724552]
[1673959599017,29.74506,1570.8,1570.7,0.04724552]
[1673959599486,32.12876188,1570.8,1570.7,0.04724552]
[1673959603638,35.24538595,1570.8,1570.7,0.04724552]
[1673959604757,34.02638595,1570.8,1570.7,0.04724552]
[1673959606931,30.90976188,1570.8,1570.7,0.04724552]
[1673959607149,31.60509451,1570.8,1570.7,0.04724552]
[1673959607361,28.74369263,1570.8,1570.7,0.04724552]
[1673959607697,30.17337622,1570.8,1570.7,0.04724552]
[1673959607907,28.74369263,1570.8,1570.7,0.04724552]
[1673959608834,22.37751263,1570.8,1570.7,0.04724552]
[1673959609049,15.53986726,1570.8,1570.7,0.04724552]
[1673959611316,16.49319891,1570.8,1570.7,0.97024552]
[1673959611560,15.06333165,1570.8,1570.7,1.07981752]
[1673959611793,13.174131,1570.8,1570.7,1.07981752]
[1673959612001,13.228131,1570.8,1570.7,0.15681752]
[1673959612219,14.18146265,1570.8,1570.7,0.04724552]
[1673959613174,15.61132991,1570.8,1570.7,0.04724552]
[1673959614045,21.97750991,1570.8,1570.7,0.04724552]
[1673959614521,21.02417826,1570.8,1570.7,0.04724552]
[1673959614731,27.86682363,1570.8,1570.7,0.04724552]
[1673959616728,29.29683615,1570.8,1570.7,0.04724552]
[1673959617045,27.86682363,1570.8,1570.7,0.04724552]
[1673959617359,29.2968327,1570.8,1570.7,0.04724552]
[1673959617761,27.86682363,1570.8,1570.7,0.04724552]
[1673959618762,31.69837194,1570.8,1570.7,0.04724552]
[1673959619625,32.17574119,1570.8,1570.7,0.04724552]
[1673959620181,34.08273626,1570.8,1570.7,0.04724552]
[1673959620502,30.25118795,1570.8,1570.7,0.04724552]
[1673959620686,27.86748607,1570.8,1570.7,0.04724552]
[1673959621358,30.25118795,1570.8,1570.7,0.04724552]
[1673959621735,38.07581202,1570.8,1570.7,0.04724552]
[1673959621955,42.54882076,1570.8,1570.7,0.00024552]
[1673959622188,35.93219669,1570.8,1570.7,0.00024552]
[1673959622352,34.72319669,1570.8,1570.7,0.00024552]
[1673959622768,31.865191,1570.8,1570.7,0.00024552]
[1673959622978,38.231371,1570.8,1570.7,0.00024552]
[1673959623399,41.0922956,1570.8,1570.7,0.00024552]
[1673959623653,39.8842956,1570.8,1570.7,0.00024552]
[1673959625079,35.804371,1570.8,1570.7,0.00024552]
[1673959625296,35.18783604,1570.8,1570.7,0.00024552]
[1673959626036,34.71013604,1570.8,1570.7,0.00024552]
[1673959629923,36.61732342,1570.8,1570.7,0.00024552]
[1673959636215,35.45285838,1570.8,1570.7,0.00024552]
[1673959636913,46.27748245,1570.8,1570.7,0.00024552]
[1673959637109,53.95871618,1570.8,1570.7,0.00024552]
[1673959638211,47.12441858,1570.8,1570.7,0.00024552]
[1673959638581,46.4780794,1570.8,1570.7,0.00024552]
[1673959639415,53.31136453,1570.8,1570.7,0.00024552]
[1673959639623,54.52736453,1570.8,1570.7,0.00024552]
[1673959639894,51.028377,1570.8,1570.7,0.00024552]
[1673959640044,47.6940794,1570.8,1570.7,0.00024552]
[1673959641326,51.028377,1570.8,1570.7,0.00024552]
[1673959641540,49.809377,1570.8,1570.7,0.00024552]
[1673959641733,46.4750794,1570.8,1570.7,0.00024552]
[1673959641945,49.809377,1570.8,1570.7,0.00024552]
[1673959642155,43.48218245,1570.8,1570.7,0.00024552]
[1673959642631,50.61996016,1570.8,1570.7,0.00024552]
[1673959642820,47.12165924,1570.8,1570.7,0.00024552]
[1673959643641,53.95293362,1570.8,1570.7,0.00024552]
[1673959643875,13.73316,1570.7,1570.6,0.12372004]
[1673959644082,25.67445333,1570.7,1570.6,0.12372004]
[1673959644317,25.67678092,1570.7,1570.6,0.12372004]
[1673959647254,29.17248759,1570.7,1570.6,0.00072004]
[1673959647402,25.67678092,1570.7,1570.6,0.00072004]
[1673959648262,32.04336092,1570.7,1570.6,0.00072004]
[1673959652831,29.83173084,1570.7,1570.6,0.00072004]
[1673959652982,1.0,1570.6,1570.5,0.12419456]
[1673959653325,32.58925185,1570.6,1570.5,0.12419456]
[1673959653536,31.43725185,1570.6,1570.5,0.12419456]
[1673959653748,31.43725185,1570.6,1570.5,0.07419456]
[1673959657498,32.42451622,1570.6,1570.0,9.5919]
[1673959657712,3.3342863,1570.3,1570.1,0.00101091]
[1673959657862,13.69000015,1570.2,1570.1,0.00101091]
[1673959658235,13.75600015,1570.2,1570.1,0.00101091]
[1673959659129,0.066,1570.2,1570.1,0.00101091]
[1673959659339,20.12408015,1570.3,1570.1,0.00101091]
[1673959659700,20.12408015,1570.3,1570.1,1.081802]
[1673959659904,21.55304464,1570.3,1570.1,1.081802]
[1673959660442,20.12408015,1570.3,1570.1,1.081802]
[1673959662166,21.55304464,1570.3,1570.1,1.081802]
[1673959662379,1.95278015,1570.2,1570.1,0.00101091]
[1673959662622,14.69000015,1570.2,1570.1,0.00101091]
[1673959662871,14.75600015,1570.2,1570.1,0.00101091]
[1673959663542,12.80322,1570.2,1570.1,0.00101091]
[1673959664954,13.75600015,1570.2,1570.1,0.00101091]
[1673959665691,12.80322,1570.2,1570.1,0.00101091]
[1673959666073,13.75600015,1570.2,1570.1,0.00101091]
[1673959666284,12.80322,1570.2,1570.1,0.00101091]
[1673959668051,13.75600015,1570.2,1570.1,0.00101091]
[1673959668301,16.13806908,1570.2,1570.1,0.00101091]
[1673959668472,15.1857148,1570.2,1570.1,0.00101091]
[1673959669102,14.23274727,1570.2,1570.1,0.00101091]
[1673959669788,13.75618465,1570.2,1570.1,0.00101091]
[1673959669941,15.18571192,1570.2,1570.1,0.00101091]
[1673959672104,13.75618465,1570.2,1570.1,0.00101091]
[1673959672263,14.23274727,1570.2,1570.1,0.00101091]
[1673959672475,7.38814583,1570.2,1570.1,0.960302]
[1673959672742,7.38814583,1570.2,1570.1,4.07692607]
[1673959672743,0.066,1570.2,1570.1,4.07692607]
[1673959672929,0.95353583,1570.3,1570.1,5.52292607]
[1673959673140,0.95353583,1570.3,1570.2,1.211]
[1673959673346,1.49552727,1570.4,1570.2,1.76939261]
[1673959673347,2.3830631,1570.4,1570.2,1.76939261]
[1673959673981,0.95353583,1570.3,1570.2,1.76939261]
[1673959676528,2.3830631,1570.3,1570.2,1.76939261]
[1673959676688,0.95353583,1570.3,1570.2,1.76939261]
[1673959677004,2.3830631,1570.3,1570.1,1.026302]
[1673959677222,14.16674727,1570.2,1570.1,0.00101091]
[1673959677439,14.70854181,1570.2,1570.1,0.00101091]
[1673959678625,21.07715181,1570.2,1570.1,0.00101091]
[1673959679250,21.55348226,1570.2,1570.1,0.00101091]
[1673959679455,23.46239451,1570.2,1570.1,0.00101091]
[1673959679995,24.1852017,1570.2,1570.1,0.00101091]
[1673959680242,26.56685396,1570.2,1570.1,0.00101091]
[1673959680406,26.56672636,1570.2,1570.1,0.00101091]
[1673959680821,24.1850741,1570.2,1570.1,0.00101091]
[1673959681032,24.1850741,1570.2,1569.9,0.13100756]
[1673959681033,12.73884,1570.0,1569.9,0.13100756]
[1673959681253,12.80484,1570.0,1569.9,0.13100756]
[1673959681497,13.75919932,1570.0,1569.9,0.13100756]
[1673959681662,12.80484,1570.0,1569.9,0.27993079]
[1673959684976,0.066,1570.0,1569.9,6.18406864]
[1673959685185,0.00172459,1570.1,1570.0,0.066]
[1673959685399,0.00172459,1570.1,1570.0,3.59165056]
[1673959685625,0.00172459,1570.1,1570.0,2.01113678]
[1673959687076,0.00172459,1570.1,1570.0,0.066]
[1673959687077,20.06302776,1570.1,1570.0,0.066]
[1673959687288,20.12902776,1570.1,1570.0,0.066]
[1673959691861,22.51511246,1570.1,1570.0,0.066]
[1673959692215,21.08356924,1570.1,1570.0,0.066]
[1673959692648,26.44860465,1570.1,1570.0,0.066]
[1673959693115,24.53982,1570.1,1570.0,0.066]
[1673959693329,1.0,1570.0,1569.9,0.13100756]
[1673959693517,16.124972,1570.0,1569.9,0.13100756]
[1673959693688,18.2715598,1570.0,1569.9,0.13100756]
[1673959693897,20.65730976,1570.0,1569.9,0.13100756]
[1673959694746,18.7494598,1570.0,1569.9,0.13100756]
[1673959695192,18.75178739,1570.0,1569.9,0.13100756]
[1673959695842,20.6586317,1570.0,1569.9,0.13100756]
[1673959696163,20.65863102,1570.0,1569.9,0.13100756]
[1673959696730,18.75178739,1570.0,1569.9,0.13100756]
[1673959696947,19.95978739,1570.0,1569.9,0.13100756]
[1673959697154,1.0,1569.9,1569.8,0.14122477]
[1673959697402,1.00232759,1569.8,1569.4,0.066]
[1673959697616,26.43931805,1569.5,1569.3,0.1571361]
[1673959697893,25.5518,1569.5,1569.3,0.1571361]
[1673959698149,25.55412759,1569.5,1569.3,0.1571361]
[1673959700478,19.18035,1569.5,1569.3,0.1571361]
[1673959701309,21.2609378,1569.5,1569.3,0.1571361]
[1673959701457,24.85566187,1569.5,1569.3,0.1571361]
[1673959701671,15.3675878,1569.5,1569.3,0.1571361]
[1673959701888,12.74372,1569.4,1569.3,0.1571361]
[1673959702103,12.80972,1569.4,1569.3,0.1571361]
[1673959704302,19.18158,1569.4,1569.3,0.1571361]
[1673959705185,19.17880368,1569.4,1569.3,0.1571361]
[1673959705999,25.55066368,1569.4,1569.3,0.1571361]
[1673959706885,19.17880368,1569.4,1569.3,0.1571361]
[1673959707516,19.18113127,1569.4,1569.3,0.1571361]
[1673959707681,19.65923127,1569.4,1569.3,0.1571361]
[1673959708640,21.11923127,1569.4,1569.3,0.1571361]
[1673959708824,23.8683384,1569.4,1569.3,0.1571361]
[1673959710579,22.4083384,1569.4,1569.3,0.1571361]
[1673959710773,19.65923127,1569.4,1569.3,0.1571361]
[1673959712183,30.59771534,1569.4,1569.3,6.1e-06]
[1673959712396,21.75557045,1569.4,1569.1,0.1571361]
[1673959712713,21.10923127,1569.4,1569.1,0.1571361]
[1673959714238,19.18113127,1569.4,1569.1,0.1571361]
[1673959714390,19.17880368,1569.4,1569.1,0.1571361]
[1673959714601,22.51439405,1569.4,1569.1,0.1571361]
[1673959714879,25.49068,1569.2,1569.1,0.1571361]
[1673959715033,25.55668,1569.2,1569.1,0.1571361]
[1673959718614,19.18401,1569.2,1569.1,0.1571361]
[1673959719343,12.74488,1569.3,1569.2,1.62066053]
[1673959719545,12.81088,1569.3,1569.2,1.62066053]
[1673959719749,6.43839,1569.3,1569.2,1.62066053]
[1673959720211,12.81096,1569.3,1569.2,1.62066053]
[1673959720554,19.18353,1569.3,1569.2,1.62066053]
[1673959724725,19.66173,1569.3,1569.2,1.62066053]
[1673959727683,24.23735407,1569.3,1569.2,5.3e-07]
[1673959729778,25.19087212,1569.3,1569.2,5.3e-07]
[1673959730164,23.73187212,1569.3,1569.2,5.3e-07]
[1673959730507,22.96118668,1569.3,1569.2,5.3e-07]
[1673959731891,32.45038075,1569.3,1569.2,5.3e-07]
[1673959732105,31.7169939,1569.3,1569.2,5.3e-07]
[1673959732411,30.28671683,1569.3,1569.2,5.3e-07]
[1673959733258,29.80851683,1569.3,1569.2,5.3e-07]
[1673959733883,31.74583375,1569.3,1569.2,5.3e-07]
[1673959734099,39.76949391,1569.3,1569.2,5.3e-07]
[1673959734242,38.81741684,1569.3,1569.2,5.3e-07]
[1673959736033,39.29417586,1569.3,1569.2,5.3e-07]
[1673959736242,39.29417586,1569.3,1569.1,6.63e-06]
[1673959736511,25.49232,1569.1,1568.9,0.964326]
[1673959736713,0.95405698,1569.0,1568.9,0.964326]
[1673959736872,21.07449698,1569.0,1568.9,0.964326]
[1673959737083,21.14049698,1569.0,1568.9,0.964326]
[1673959737346,21.57158244,1569.0,1568.9,0.964326]
[1673959737536,20.14049698,1569.0,1568.9,0.964326]
[1673959737711,19.18644,1569.0,1568.9,0.964326]
[1673959739140,28.52966641,1569.0,1568.9,0.964326]
[1673959739350,43.00268506,1569.0,1568.9,0.964326]
[1673959739496,43.78742234,1569.0,1568.9,0.964326]
[1673959739862,41.88164582,1569.0,1568.9,0.964326]
[1673959741291,41.38522051,1569.0,1568.9,0.964326]
[1673959741500,34.13834228,1569.0,1568.9,0.964326]
[1673959742089,33.18476759,1569.0,1568.9,0.964326]
[1673959742439,34.13834228,1569.0,1568.9,0.964326]
[1673959742787,33.18476759,1569.0,1568.9,0.964326]
[1673959743000,33.18244,1569.0,1568.9,0.964326]
[1673959743187,33.18244,1569.0,1568.9,1.1190836]
[1673959743188,25.86001278,1569.0,1568.9,1.1190836]
[1673959743395,17.79960868,1569.0,1568.9,1.1190836]
[1673959744488,24.17308868,1569.0,1568.9,1.1190836]
[1673959744703,14.062,1569.0,1568.9,1.1190836]
[1673959745397,14.062,1569.0,1568.9,7.27712346]
[1673959745612,14.062,1569.0,1568.9,8.80285904]
[1673959745871,14.062,1569.0,1568.9,9.74815823]
[1673959746700,14.062,1569.0,1568.9,8.28842265]
[1673959747008,14.062,1569.0,1568.9,9.28842265]
[1673959747847,14.062,1569.0,1568.9,8.28842265]
[1673959748248,14.062,1569.0,1568.9,9.28842265]
[1673959749306,14.062,1569.0,1568.9,8.28842265]
[1673959751083,11.5881053,1569.0,1568.9,14.09291711]
[1673959751296,11.5981053,1569.0,1568.9,18.59484821]
[1673959752177,11.5981053,1569.0,1568.9,24.96873821]
[1673959752606,11.5981053,1569.0,1568.9,24.50900263]
[1673959752821,11.5981053,1569.0,1568.9,24.96873821]
[1673959753816,11.5981053,1569.0,1568.9,24.50900263]
[1673959754064,11.5981053,1569.0,1568.9,24.04275312]
[1673959756193,11.5981053,1569.0,1568.9,16.71701346]
[1673959757387,11.5981053,1569.0,1568.9,17.66886312]
[1673959758366,11.5981053,1569.0,1568.9,24.04275312]
[1673959758721,11.5981053,1569.0,1568.9,31.83474229]
[1673959759944,11.5981053,1569.0,1568.9,30.41664312]
[1673959760157,11.5981053,1569.0,1568.9,31.83474229]
[1673959761038,11.5981053,1569.0,1568.9,30.41664312]
[1673959761330,11.5981053,1569.0,1568.9,24.04275312]
[1673959761642,11.5981053,1569.0,1568.9,30.41664312]
[1673959763543,9.91142594,1569.0,1568.9,24.04275312]
[1673959764696,9.91142594,1569.0,1568.9,30.41664312]
[1673959764869,9.91142594,1569.0,1568.9,32.78941566]
[1673959769490,7.38152234,1569.0,1568.9,33.25566517]
[1673959769699,7.38152234,1569.0,1568.9,35.12762407]
[1673959770107,7.38152234,1569.0,1568.9,35.18669407]
[1673959770319,7.38152234,1569.0,1568.9,33.31473517]
[1673959770563,7.38152234,1569.0,1568.9,35.18669407]
[1673959771001,7.38152234,1569.0,1568.9,33.31473517]
[1673959772322,7.38152234,1569.0,1568.9,33.25566517]
[1673959777003,7.38152234,1569.0,1568.9,34.20718973]
[1673959777156,7.38152234,1569.0,1568.9,32.78909056]
[1673959777682,7.38152234,1569.0,1568.9,34.20718973]
[1673959777973,7.38152234,1569.0,1568.9,35.12762407]
[1673959779412,7.38152234,1569.0,1568.9,33.25566517]
[1673959779851,7.38152234,1569.0,1568.9,33.7075249]
[1673959780156,7.38152234,1569.0,1568.9,39.06387021]
[1673959780317,7.38152234,1569.0,1568.9,39.21257021]
[1673959780532,7.38152234,1569.0,1568.9,39.06387021]
[1673959782723,7.38152234,1569.0,1568.9,12.685679]
[1673959782964,7.38152234,1569.0,1568.9,11.1114607]
[1673959783186,6.43270941,1569.0,1568.9,9.6816777]
[1673959783366,4.74592718,1569.0,1568.9,9.6816777]
[1673959783618,4.67992718,1569.0,1568.9,9.6816777]
[1673959784188,4.67992718,1569.0,1568.9,11.1114607]
[1673959784456,4.67992718,1569.0,1568.9,9.6816777]
[1673959784667,4.67992718,1569.0,1568.9,6.6816777]
[1673959785575,17.42688718,1569.0,1568.9,3.56505363]
[1673959785830,25.0260939,1569.0,1568.9,2.54574179]
[1673959786350,26.4760939,1569.0,1568.9,0.964326]
[1673959786561,26.9542939,1569.0,1568.9,0.964326]
[1673959787252,27.90786859,1569.0,1568.9,0.964326]
[1673959787472,29.83537036,1569.0,1568.9,0.964326]
[1673959788795,30.78940435,1569.0,1568.9,0.964326]
[1673959789440,29.83537036,1569.0,1568.9,0.964326]
[1673959790337,30.78887451,1569.0,1568.9,0.964326]
[1673959791071,29.35779805,1569.0,1568.9,0.964326]
[1673959792493,28.4042939,1569.0,1568.9,0.964326]
[1673959792913,31.52091797,1569.0,1568.9,0.964326]
[1673959793160,29.35779805,1569.0,1568.9,0.964326]
[1673959793752,30.78887451,1569.0,1568.9,0.964326]
[1673959793962,29.83537036,1569.0,1568.9,0.964326]
[1673959794439,30.78806054,1569.0,1568.9,0.964326]
[1673959795126,33.90468461,1569.0,1568.9,0.964326]
[1673959795384,46.19357854,1569.0,1568.9,0.964326]
[1673959795559,46.19357854,1569.0,1568.7,1.0844372]
[1673959795560,1.0,1568.9,1568.7,1.0844372]
[1673959795776,2.0343,1568.8,1568.7,1.0844372]
[1673959795988,28.4841375,1568.8,1568.7,1.0844372]
[1673959796199,28.5501375,1568.8,1568.7,1.0844372]
[1673959796439,27.59746,1568.8,1568.7,1.0844372]
[1673959797391,32.17408407,1568.8,1568.7,1.0844372]
[1673959797543,33.12676157,1568.8,1568.7,1.0844372]
[1673959797753,36.62676157,1568.8,1568.7,1.0844372]
[1673959797964,40.14739075,1568.8,1568.7,1.0844372]
[1673959798919,40.14971834,1568.8,1568.7,1.0844372]
[1673959799134,30.65880427,1568.8,1568.7,1.0844372]
[1673959799361,29.05978759,1568.8,1568.7,1.0844372]
[1673959799550,27.60378759,1568.8,1568.7,1.0844372]
[1673959800395,33.13208916,1568.8,1568.7,1.0844372]
[1673959800712,32.17941166,1568.8,1568.7,1.0844372]
[1673959800929,29.06278759,1568.8,1568.7,1.0844372]
[1673959801583,29.06278759,1568.8,1568.7,0.8537812]
[1673959802318,28.58448759,1568.8,1568.7,0.8537812]
[1673959802530,29.06278759,1568.8,1568.7,0.8537812]
[1673959802704,28.58448759,1568.8,1568.7,0.8537812]
[1673959803132,32.17941166,1568.8,1568.7,0.8537812]
[1673959803477,33.13208916,1568.8,1568.7,0.8537812]
[1673959804782,33.60842791,1568.8,1568.7,0.8537812]
[1673959804998,34.55900413,1568.8,1568.7,0.8537812]
[1673959805242,33.12998788,1568.8,1568.7,0.8537812]
[1673959808309,29.06046,1568.8,1568.7,0.8537812]
[1673959809220,28.58216,1568.8,1568.7,0.8537812]
[1673959809642,27.12216,1568.8,1568.7,0.8537812]
[1673959810257,28.07273622,1568.8,1568.7,0.8537812]
[1673959810954,28.55103622,1568.8,1568.7,0.8537812]
[1673959811412,27.60046,1568.8,1568.7,0.8537812]
[1673959812582,28.55103622,1568.8,1568.7,0.8537812]